[Event "13th Palmanova Festival A 2024"]
[Site "Palmanova"]
[Date "2024.12.27"]
[Round "1.10"]
[White "Cocchi, Andrea"]
[Black "Mostbauer, Florian"]
[Result "0-1"]
[ECO "A12"]
[WhiteElo "2121"]
[BlackElo "2356"]
[Annotator "TA"]
[PlyCount "66"]
[EventDate "2024.12.27"]
[EventCountry "ITA"]
[SourceTitle "playchess.com"]
[Source "ChessBase"]
[SourceQuality "1"]
[TimeControl "6000+30"]

{[%evp 11,66,8,9,-3,-2,-10,-9,-7,0,0,0,-4,-1,-10,-12,-14,-15,-25,-22,-21,-22,-28,-23,-23,-33,-25,-24,-53,-43,-56,-46,-61,-63,-127,-111,-100,-106,-108,-118,-130,-139,-134,-123,-122,-124,-232,-286,-273,-270,-259,-257,-253,-191,-171,-163,-885,-849]} 1. Nf3 {[%emt 0:00:23]} d5 {[%emt 0:00:11]} 2. e3 {[%emt 0:01:14]} Nf6 {[%emt 0:00:20]} 3. b3 {[%emt 0:01:58]} Bg4 {[%emt 0:05:42]} 4. Bb2 {[%emt 0:05:19]} Nbd7 {[%emt 0:00:31]} 5. Be2 {[%emt 0:00:51]} c6 {[%emt 0:01:17]} 6. c4 {[%emt 0:05:22]} e6 {[%emt 0:04:07]} 7. cxd5 {[%emt 0:07:12]} exd5 {[%emt 0:00:51]} 8. Nd4 {[%emt 0:01:57]} Bxe2 {[%emt 0:15:39]} 9. Qxe2 {[%emt 0:04:30]} g6 {[%emt 0:02:37]} 10. O-O {[%emt 0:06:54]} Bg7 {[%emt 0:01:55]} 11. Ba3 {[%emt 0:27:39]} a6 {[%emt 0:01:20]} 12. d3 {[%emt 0:02:04]} (12. Nc3 {looks sharper.} Qa5 13. Bd6 Ne4 14. b4) 12... c5 {[%emt 0:10:38][%cal Of6h5]} 13. Nf3 {[%emt 0:01:37]} (13. Rc1 $5) 13... O-O {[%emt 0:01:13][%cal Od5d4]} 14. d4 {[%emt 0:06:48]} Ne4 {[%emt 0:06:00]} 15. Bb2 {[%emt 0:02:11]} Qf6 {[%emt 0:07:03]} 16. Nbd2 {[%emt 0:09:29]} b5 {[%emt 0:03:53]} 17. Nxe4 {[%emt 0:01:37]} dxe4 {[%emt 0:00:11]} 18. Nd2 {[%emt 0:05:11]} Qe6 {[%emt 0:01:32]} 19. a4 {[%emt 0:04:05]} Rab8 {[%emt 0:03:20]} 20. axb5 {[%emt 0:00:58]} axb5 {[%emt 0:02:46]} 21. Ra5 {[%emt 0:02:58][%cal Of1a1]} cxd4 {[%emt 0:05:04]} 22. Bxd4 {[%emt 0:01:29]} (22. exd4 $15 Nf6 23. Re1) 22... Bxd4 $17 {[%emt 0:00:33]} 23. exd4 {[%emt 0:00:02]} Qb6 {[%emt 0:00:46][%csl LRa5,LRd4]} 24. Ra2 {[%emt 0:04:11]} f5 {[%emt 0:00:09]} 25. Qe3 {[%emt 0:00:22]} Nf6 {[%emt 0:00:05]} 26. Rfa1 {[%emt 0:00:34]} Nd5 {[%emt 0:03:58] Black is more active.} 27. Qh6 {[%emt 0:00:11]} Qxd4 {[%emt 0:00:09]} 28. Ra7 {[%emt 0:00:55] Prevents Rb7.} (28. Nf1 $17 {was necessary.}) 28... Rf7 $19 {[%emt 0:00:02]} 29. Ra8 {[%emt 0:01:15]} Rbf8 {[%emt 0:00:16]} 30. Nf1 {[%emt 0:00:20]} f4 {[%emt 0:01:47] Dodges Ne3} 31. Qh4 {[%emt 0:03:22]} e3 {[%emt 0:04:52]} 32. fxe3 {[%emt 0:00:20]} Nxe3 {[%emt 0:00:10] ...Ng4+ is the strong threat.} 33. Kh1 $2 {[%emt 0:00:47] [#]} (33. Qf2) 33... f3 $1 {[%emt 0:04:04]} 0-1

[Event "13th Palmanova Festival A 2024"]
[Site "Palmanova"]
[Date "2024.12.27"]
[Round "1.12"]
[White "Groessing, Daniel-Yosuke"]
[Black "Zamengo, Fulvio"]
[Result "0-1"]
[ECO "E14"]
[WhiteElo "2100"]
[BlackElo "2348"]
[Annotator "ChessBase"]
[PlyCount "82"]
[EventDate "2024.12.27"]
[EventCountry "ITA"]
[SourceTitle "playchess.com"]
[Source "ChessBase"]
[SourceQuality "1"]
[TimeControl "6000+30"]

1. d4 {[%emt 0:00:04]} e6 {[%emt 0:00:46]} 2. c4 {[%emt 0:00:22]} b6 {[%emt 0:00:06]} 3. Nf3 {[%emt 0:01:48]} Bb7 {[%emt 0:00:12]} 4. e3 {[%emt 0:03:38]} Nf6 {[%emt 0:01:21]} 5. Bd3 {[%emt 0:01:13]} c5 {[%emt 0:01:38]} 6. O-O {[%emt 0:02:28]} Be7 {[%emt 0:09:44]} 7. Nc3 {[%emt 0:03:20]} cxd4 {[%emt 0:00:19]} 8. exd4 {[%emt 0:00:59]} d6 {[%emt 0:00:28]} 9. h3 {[%emt 0:06:40]} O-O {[%emt 0:00:10]} 10. Bf4 {[%emt 0:00:41]} Nbd7 {[%emt 0:09:45]} 11. a4 {[%emt 0:07:11]} d5 {[%emt 0:08:19]} 12. Re1 {[%emt 0:05:22]} Rc8 {[%emt 0:07:45]} 13. b3 {[%emt 0:17:56]} Bb4 {[%emt 0:05:22]} 14. Bd2 {[%emt 0:02:14]} Nb8 {[%emt 0:04:20]} 15. Nb1 {[%emt 0:05:12]} Nc6 {[%emt 0:07:24]} 16. Ne5 {[%emt 0:03:36]} Bxd2 {[%emt 0:03:39]} 17. Nxc6 {[%emt 0:00:30]} Rxc6 {[%emt 0:00:25]} 18. Qxd2 {[%emt 0:00:23]} dxc4 {[%emt 0:10:43]} 19. Bxc4 {[%emt 0:02:22]} Rd6 {[%emt 0:01:36]} 20. Rd1 {[%emt 0:00:34]} Qa8 {[%emt 0:03:27]} 21. f3 {[%emt 0:01:08]} Rfd8 {[%emt 0:06:27]} 22. Nc3 {[%emt 0:01:26]} h6 {[%emt 0:00:08]} 23. Nb5 {[%emt 0:04:23]} R6d7 {[%emt 0:00:08]} 24. a5 {[%emt 0:00:24]} Qb8 {[%emt 0:02:12]} 25. axb6 {[%emt 0:01:51]} axb6 {[%emt 0:00:08]} 26. Ra4 {[%emt 0:04:39]} Nh5 {[%emt 0:10:23]} 27. Qe3 {[%emt 0:09:05]} Qg3 {[%emt 0:08:25]} 28. Qf2 {[%emt 0:05:24]} Qg5 {[%emt 0:00:06]} 29. Re1 {[%emt 0:02:40]} Nf4 {[%emt 0:00:57]} 30. Kh2 {[%emt 0:01:05]} Bc6 {[%emt 0:00:18]} 31. Re5 {[%emt 0:02:45]} Qf6 {[%emt 0:00:07]} 32. Qe3 {[%emt 0:08:23]} Ng6 {[%emt 0:00:31]} 33. Re4 {[%emt 0:00:12]} Bxe4 {[%emt 0:00:33]} 34. fxe4 {[%emt 0:00:12]} Rxd4 {[%emt 0:02:42]} 35. Nxd4 {[%emt 0:00:25]} Rxd4 {[%emt 0:00:07]} 36. Be2 {[%emt 0:02:03]} Qe5+ {[%emt 0:00:10]} 37. Kg1 {[%emt 0:00:41]} Nf4 {[%emt 0:00:21]} 38. Bf3 {[%emt 0:00:40]} Nxh3+ {[%emt 0:01:08]} 39. gxh3 {[%emt 0:00:33]} Qg3+ {[%emt 0:00:08]} 40. Kf1 {[%emt 0:00:13]} Rd1+ {[%emt 0:00:06]} 41. Bxd1 {[%emt 0:01:02]} Qxe3 {[%emt 0:00:06]} 0-1

[Event "13th Palmanova Festival A 2024"]
[Site "Palmanova"]
[Date "2024.12.27"]
[Round "1.13"]
[White "Skawinski, Arkadiusz"]
[Black "Mizzi, Jack"]
[Result "0-1"]
[ECO "C55"]
[WhiteElo "2330"]
[BlackElo "2097"]
[Annotator "ChessBase"]
[PlyCount "90"]
[EventDate "2024.12.27"]
[EventCountry "ITA"]
[SourceTitle "playchess.com"]
[Source "ChessBase"]
[SourceQuality "1"]
[TimeControl "6000+30"]

1. e4 {[%emt 0:00:22]} e5 {[%emt 0:00:30]} 2. Nf3 {[%emt 0:00:51]} Nc6 {[%emt 0:00:22]} 3. Bc4 {[%emt 0:03:35]} Nf6 {[%emt 0:01:29]} 4. d3 {[%emt 0:00:12]} h6 {[%emt 0:01:19]} 5. O-O {[%emt 0:01:38]} d6 {[%emt 0:01:59]} 6. c3 {[%emt 0:04:59]} g5 {[%emt 0:03:13]} 7. a4 {[%emt 0:08:53]} a5 {[%emt 0:13:35]} 8. Na3 {[%emt 0:21:47]} Bg7 {[%emt 0:04:36]} 9. Nc2 {[%emt 0:01:52]} O-O {[%emt 0:01:56]} 10. Ne3 {[%emt 0:00:17]} Ne7 {[%emt 0:03:05]} 11. Re1 {[%emt 0:21:37]} c6 {[%emt 0:08:16]} 12. Qc2 {[%emt 0:05:34]} Qc7 {[%emt 0:09:04]} 13. Ba2 {[%emt 0:01:57]} d5 {[%emt 0:05:05]} 14. exd5 {[%emt 0:01:07]} cxd5 {[%emt 0:00:48]} 15. d4 {[%emt 0:00:07]} e4 {[%emt 0:02:48]} 16. Ne5 {[%emt 0:00:05]} Be6 {[%emt 0:03:00]} 17. f3 {[%emt 0:00:56]} exf3 {[%emt 0:04:03]} 18. Nxf3 {[%emt 0:01:06]} Ng6 {[%emt 0:05:39]} 19. Rf1 {[%emt 0:17:38]} Rfe8 {[%emt 0:09:05]} 20. Nf5 {[%emt 0:03:19]} Ne4 {[%emt 0:02:34]} 21. Nxg7 {[%emt 0:00:17]} Kxg7 {[%emt 0:00:08]} 22. Nd2 {[%emt 0:01:56]} f5 {[%emt 0:02:13]} 23. Nxe4 {[%emt 0:00:18]} fxe4 {[%emt 0:00:17]} 24. Be3 {[%emt 0:01:34]} Rf8 {[%emt 0:05:29]} 25. Qe2 {[%emt 0:05:05]} Nf4 {[%emt 0:04:17]} 26. Qb5 {[%emt 0:00:17]} Qc6 {[%emt 0:04:19]} 27. Rf2 {[%emt 0:03:08]} Qxb5 {[%emt 0:03:32]} 28. axb5 {[%emt 0:00:05]} a4 {[%emt 0:00:30]} 29. Raf1 {[%emt 0:01:48]} a3 {[%emt 0:01:46]} 30. b3 {[%emt 0:00:33]} Rac8 {[%emt 0:01:25]} 31. Rc2 {[%emt 0:00:40]} Bd7 {[%emt 0:00:47]} 32. c4 {[%emt 0:01:35]} Bxb5 {[%emt 0:01:45]} 33. Bxf4 {[%emt 0:00:25]} gxf4 {[%emt 0:00:21]} 34. Rfc1 {[%emt 0:00:17]} Ba6 {[%emt 0:02:59]} 35. Rc3 {[%emt 0:00:28]} Rfd8 {[%emt 0:01:42]} 36. c5 {[%emt 0:00:20]} Ra8 {[%emt 0:02:02]} 37. Kf2 {[%emt 0:00:50]} Bb5 {[%emt 0:00:53]} 38. g3 {[%emt 0:00:37]} e3+ {[%emt 0:01:26]} 39. Kf3 {[%emt 0:00:52]} fxg3 {[%emt 0:00:09]} 40. Rxe3 {[%emt 0:00:05]} gxh2 {[%emt 0:00:58]} 41. Re7+ {[%emt 0:00:26]} Kf6 {[%emt 0:00:42]} 42. Rxb7 {[%emt 0:00:24]} Bd3 {[%emt 0:00:14]} 43. Kg2 {[%emt 0:00:14]} Re8 {[%emt 0:00:20]} 44. c6 {[%emt 0:00:00]} Re2+ {[%emt 0:00:00]} 45. Kf3 {[%emt 0:00:00]} Rc2 {[%emt 0:00:00]} 0-1

[Event "13th Palmanova Festival A 2024"]
[Site "Palmanova"]
[Date "2024.12.27"]
[Round "1.14"]
[White "Kalosha, Zhiulien Oleksii"]
[Black "Mazzini, Mauro"]
[Result "0-1"]
[ECO "B90"]
[WhiteElo "2306"]
[BlackElo "2069"]
[Annotator "ChessBase"]
[PlyCount "114"]
[EventDate "2024.12.27"]
[EventCountry "ITA"]
[SourceTitle "playchess.com"]
[Source "ChessBase"]
[SourceQuality "1"]
[TimeControl "6000+30"]

1. e4 {[%emt 0:00:13]} c5 {[%emt 0:00:08]} 2. Nf3 {[%emt 0:00:16]} d6 {[%emt 0:00:19]} 3. d4 {[%emt 0:00:16]} cxd4 {[%emt 0:00:11]} 4. Nxd4 {[%emt 0:00:10]} Nf6 {[%emt 0:00:10]} 5. Nc3 {[%emt 0:00:17]} a6 {[%emt 0:00:10]} 6. f3 {[%emt 0:00:47]} e5 {[%emt 0:02:51]} 7. Nb3 {[%emt 0:00:19]} Be6 {[%emt 0:00:08]} 8. Be3 {[%emt 0:00:17]} Be7 {[%emt 0:00:08]} 9. Qd2 {[%emt 0:00:23]} b5 {[%emt 0:06:31]} 10. a4 {[%emt 0:02:37]} b4 {[%emt 0:04:02]} 11. Nd5 {[%emt 0:00:22]} Bxd5 {[%emt 0:00:30]} 12. exd5 {[%emt 0:00:08]} a5 {[%emt 0:00:12]} 13. Bb5+ {[%emt 0:05:01]} Nfd7 {[%emt 0:00:20]} 14. O-O {[%emt 0:04:07]} O-O {[%emt 0:00:19]} 15. c3 {[%emt 0:04:24]} Nc5 {[%emt 0:28:47]} 16. Nxc5 {[%emt 0:07:17]} dxc5 {[%emt 0:00:28]} 17. cxb4 {[%emt 0:03:59]} cxb4 {[%emt 0:03:13]} 18. Rac1 {[%emt 0:17:55]} Bd6 {[%emt 0:02:10]} 19. Rfd1 {[%emt 0:06:41]} Qe7 {[%emt 0:02:08]} 20. Qc2 {[%emt 0:11:22]} Nd7 {[%emt 0:03:02]} 21. Qc6 {[%emt 0:07:05]} Rfd8 {[%emt 0:03:46]} 22. Bf2 {[%emt 0:02:22]} e4 {[%emt 0:21:18]} 23. fxe4 {[%emt 0:03:59]} Ne5 {[%emt 0:00:07]} 24. Qc2 {[%emt 0:01:00]} Ng4 {[%emt 0:00:15]} 25. g3 {[%emt 0:00:49]} h5 {[%emt 0:03:56]} 26. Bb6 {[%emt 0:08:00]} Rdb8 {[%emt 0:05:14]} 27. Bd4 {[%emt 0:00:19]} h4 {[%emt 0:01:09]} 28. Qe2 {[%emt 0:01:03]} Ne5 {[%emt 0:00:41]} 29. Kg2 {[%emt 0:00:50]} Rf8 {[%emt 0:03:01]} 30. Rf1 {[%emt 0:01:41]} Rac8 {[%emt 0:04:32]} 31. Rxc8 {[%emt 0:06:40]} Rxc8 {[%emt 0:00:07]} 32. Ba6 {[%emt 0:00:11]} Ra8 {[%emt 0:01:33]} 33. Rc1 {[%emt 0:00:32]} Ng6 {[%emt 0:03:41]} 34. Rc8+ {[%emt 0:11:47]} Rxc8 {[%emt 0:00:26]} 35. Bxc8 {[%emt 0:00:05]} hxg3 {[%emt 0:00:06]} 36. hxg3 {[%emt 0:00:16]} Qg5 {[%emt 0:00:42]} 37. Bg4 {[%emt 0:00:17]} Ne5 {[%emt 0:02:09]} 38. Bf5 {[%emt 0:02:05]} Ng6 {[%emt 0:04:18]} 39. Bg4 {[%emt 0:03:30]} Ne5 {[%emt 0:00:05]} 40. Bf5 {[%emt 0:00:28]} Ng6 {[%emt 0:00:06]} 41. Qe3 {[%emt 0:00:34]} Bf4 {[%emt 0:04:13]} 42. Qf2 {[%emt 0:00:06]} Nh4+ {[%emt 0:00:52]} 43. Kh2 {[%emt 0:00:24]} Nxf5 {[%emt 0:01:23]} 44. exf5 {[%emt 0:00:25]} Qh4+ {[%emt 0:00:34]} 45. Kg1 {[%emt 0:01:08]} Bxg3 {[%emt 0:00:16]} 46. Qd2 {[%emt 0:00:30]} Qg4 {[%emt 0:00:54]} 47. Be3 {[%emt 0:00:30]} Bf4+ {[%emt 0:01:26]} 48. Kf2 {[%emt 0:00:06]} Bxe3+ {[%emt 0:01:02]} 49. Kxe3 {[%emt 0:00:29]} Qg5+ {[%emt 0:00:40]} 50. Kd3 {[%emt 0:00:47]} Qxd2+ {[%emt 0:00:26]} 51. Kxd2 {[%emt 0:00:07]} Kf8 {[%emt 0:00:02]} 52. Kd3 {[%emt 0:00:44]} Ke7 {[%emt 0:00:09]} 53. Kc4 {[%emt 0:00:23]} g5 {[%emt 0:01:07]} 54. fxg6 {[%emt 0:00:45]} fxg6 {[%emt 0:00:01]} 55. Kb5 {[%emt 0:00:18]} g5 {[%emt 0:00:08]} 56. Kxa5 {[%emt 0:00:36]} g4 {[%emt 0:00:02]} 57. Kb6 {[%emt 0:00:07]} Kd7 {[%emt 0:00:29]} 0-1

[Event "13th Palmanova Festival A 2024"]
[Site "Palmanova"]
[Date "2024.12.28"]
[Round "2.1"]
[White "Solomon, Kenny"]
[Black "Martinovici, Ilia"]
[Result "1/2-1/2"]
[ECO "D37"]
[WhiteElo "2277"]
[BlackElo "2473"]
[Annotator "RC"]
[PlyCount "84"]
[EventDate "2024.12.27"]
[EventCountry "ITA"]
[SourceTitle "playchess.com"]
[Source "ChessBase"]
[SourceQuality "1"]
[TimeControl "6000+30"]

1. d4 {[%emt 0:04:32]} d5 {[%emt 0:05:10]} 2. Nf3 {[%emt 0:00:12]} e6 {[%emt 0:00:11]} 3. c4 {[%emt 0:00:12]} a6 {[%emt 0:00:08]} 4. cxd5 {[%emt 0:06:57]} exd5 {[%emt 0:00:13]} 5. Nc3 {[%emt 0:00:40]} Nf6 {[%emt 0:00:06]} 6. Bg5 {[%emt 0:00:04]} Be6 {[%emt 0:00:04]} 7. e3 {[%emt 0:00:03]} Nbd7 {[%emt 0:00:03]} 8. Bd3 {[%emt 0:00:05]} Bd6 {[%emt 0:00:28]} 9. h3 {[%emt 0:02:17]} c6 {[%emt 0:00:14]} 10. O-O {[%emt 0:01:16]} O-O {[%emt 0:03:58]} 11. Bf4 {[%emt 0:03:35]} Qb8 {[%emt 0:00:08]} 12. Bxd6 {[%emt 0:02:43]} Qxd6 {[%emt 0:00:05]} 13. Qb3 {[%emt 0:00:06]} Rfc8 {[%emt 0:08:33]} 14. Rfc1 {[%emt 0:00:51]} c5 {[%emt 0:13:05]} 15. dxc5 {[%emt 0:00:27]} Nxc5 {[%emt 0:00:09]} 16. Qb4 {[%emt 0:20:56]} b5 {[%emt 0:05:56]} 17. Ne2 {[%emt 0:15:49]} Nfe4 {[%emt 0:05:09]} 18. Qd4 {[%emt 0:08:16]} Nxd3 {[%emt 0:20:08]} 19. Qxd3 {[%emt 0:00:18]} Qb4 {[%emt 0:03:29]} 20. Qd4 {[%emt 0:20:39]} Rc4 {[%emt 0:02:25]} 21. Qe5 {[%emt 0:00:16]} Re8 {[%emt 0:21:47]} 22. b3 {[%emt 0:05:33]} f6 {[%emt 0:00:55]} 23. Qb2 {[%emt 0:04:11]} Rec8 {[%emt 0:01:26]} 24. Nfd4 {[%emt 0:04:53]} Bd7 {[%emt 0:00:37]} 25. a3 {[%emt 0:01:03]} Rxc1+ {[%emt 0:00:26]} 26. Rxc1 {[%emt 0:00:02]} Rxc1+ {[%emt 0:00:56]} 27. Qxc1 {[%emt 0:00:02]} Qd6 {[%emt 0:00:05]} 28. Nf4 {[%emt 0:02:11]} Nc5 {[%emt 0:03:14]} 29. b4 {[%emt 0:03:04]} Na4 {[%emt 0:00:25]} 30. Nd3 {[%emt 0:01:36]} Nb6 {[%emt 0:00:40]} 31. Qc5 {[%emt 0:01:30]} Qxc5 {[%emt 0:00:01]} 32. Nxc5 {[%emt 0:02:11]} Bc8 33. Nc6 {[%emt 0:00:00]} Kf7 {[%emt 0:01:06]} 34. Na7 {[%emt 0:00:00]} Bd7 {[%emt 0:00:15]} 35. Nxa6 {[%emt 0:00:24]} Nc4 {[%emt 0:01:07]} 36. Nc5 {[%emt 0:00:27]} Be8 {[%emt 0:00:02]} 37. Nc8 {[%emt 0:00:09]} Nxa3 {[%emt 0:00:06]} 38. Nd6+ {[%emt 0:00:14]} Ke7 {[%emt 0:00:06]} 39. Nf5+ {[%emt 0:00:45]} Kf7 {[%emt 0:01:44]} 40. Nd6+ {[%emt 0:00:39]} Ke7 {[%emt 0:00:01]} 41. Nf5+ {[%emt 0:00:00]} Kf7 {[%emt 0:00:00]} 42. Nd4 {[%emt 0:00:00]} Ke7 {[%emt 0:00:00]} 1/2-1/2

[Event "13th Palmanova Festival A 2024"]
[Site "Palmanova"]
[Date "2024.12.28"]
[Round "2.2"]
[White "Reza, Wojciech"]
[Black "Domalchuk-Jonasson, Aleksandr"]
[Result "0-1"]
[ECO "E32"]
[WhiteElo "2227"]
[BlackElo "2377"]
[Annotator "RC"]
[PlyCount "76"]
[EventDate "2024.12.27"]
[EventCountry "ITA"]
[SourceTitle "playchess.com"]
[Source "ChessBase"]
[SourceQuality "1"]
[TimeControl "6000+30"]

1. d4 {[%emt 0:00:02]} Nf6 {[%emt 0:06:12]} 2. c4 {[%emt 0:00:27]} e6 {[%emt 0:00:13]} 3. Nc3 {[%emt 0:00:27]} Bb4 {[%emt 0:00:53]} 4. Qc2 {[%emt 0:02:53]} d6 {[%emt 0:03:34]} 5. e3 {[%emt 0:06:10]} O-O {[%emt 0:03:28]} 6. Bd3 {[%emt 0:07:25]} c5 {[%emt 0:02:23]} 7. a3 {[%emt 0:06:35]} Bxc3+ {[%emt 0:08:24]} 8. Qxc3 {[%emt 0:00:14]} b6 {[%emt 0:03:06]} 9. Ne2 {[%emt 0:03:41]} Bb7 {[%emt 0:01:38]} 10. O-O {[%emt 0:02:27]} Nbd7 {[%emt 0:00:26]} 11. b4 {[%emt 0:07:34]} Qe7 {[%emt 0:02:03]} 12. Bb2 {[%emt 0:05:00]} Rac8 {[%emt 0:03:35]} 13. dxc5 {[%emt 0:11:38]} dxc5 {[%emt 0:06:46]} 14. Rfd1 {[%emt 0:07:31]} Rfd8 {[%emt 0:02:00]} 15. Ng3 {[%emt 0:02:17]} Qf8 {[%emt 0:06:21]} 16. b5 {[%emt 0:09:04]} a6 {[%emt 0:05:30]} 17. bxa6 {[%emt 0:01:37]} Bxa6 {[%emt 0:00:06]} 18. Rab1 {[%emt 0:00:23]} Bb7 {[%emt 0:06:57]} 19. Ba1 {[%emt 0:02:51]} Ra8 {[%emt 0:00:47]} 20. h4 {[%emt 0:00:42]} Ra6 {[%emt 0:08:08]} 21. Rd2 {[%emt 0:02:09]} Raa8 {[%emt 0:24:32]} 22. Rbd1 {[%emt 0:01:24]} Qe7 {[%emt 0:00:45]} 23. Ne4 {[%emt 0:20:07]} Kf8 {[%emt 0:01:25]} 24. Bc2 {[%emt 0:05:00]} Bc6 {[%emt 0:07:58]} 25. Nd6 {[%emt 0:01:55]} Kg8 {[%emt 0:02:11]} 26. Be4 {[%emt 0:02:24]} Bxe4 {[%emt 0:01:32]} 27. Nxe4 {[%emt 0:00:04]} Ne8 {[%emt 0:02:16]} 28. h5 {[%emt 0:01:10]} h6 {[%emt 0:00:35]} 29. Qb3 {[%emt 0:01:12]} f5 {[%emt 0:00:28]} 30. Nd6 {[%emt 0:00:28]} Nef6 {[%emt 0:00:35]} 31. Bxf6 {[%emt 0:00:18]} Nxf6 {[%emt 0:00:30]} 32. Qxb6 {[%emt 0:00:05]} Rd7 {[%emt 0:00:38]} 33. Qxc5 {[%emt 0:00:49]} Rad8 {[%emt 0:00:30]} 34. Qb4 {[%emt 0:00:18]} Ng4 {[%emt 0:00:32]} 35. c5 {[%emt 0:00:54]} Qh4 {[%emt 0:00:17]} 36. Qf4 {[%emt 0:00:18]} e5 {[%emt 0:00:43]} 37. Nxf5 {[%emt 0:00:56]} exf4 {[%emt 0:00:30]} 38. Nxh4 {[%emt 0:00:25]} Rxd2 {[%emt 0:00:04]} 0-1

[Event "13th Palmanova Festival A 2024"]
[Site "Palmanova"]
[Date "2024.12.28"]
[Round "2.3"]
[White "Dobrovoljc, Vid"]
[Black "Javornik, Nik"]
[Result "1-0"]
[ECO "A38"]
[WhiteElo "2365"]
[BlackElo "2300"]
[Annotator "RC"]
[PlyCount "55"]
[EventDate "2024.12.27"]
[EventCountry "ITA"]
[SourceTitle "playchess.com"]
[Source "ChessBase"]
[SourceQuality "1"]
[TimeControl "6000+30"]

1. Nf3 {[%emt 0:09:17]} c5 {[%emt 0:00:06]} 2. c4 {[%emt 0:00:22]} g6 {[%emt 0:00:29]} 3. Nc3 {[%emt 0:00:57]} Bg7 {[%emt 0:00:10]} 4. g3 {[%emt 0:00:07]} Nf6 {[%emt 0:01:51]} 5. Bg2 {[%emt 0:00:50]} O-O {[%emt 0:00:06]} 6. O-O {[%emt 0:00:31]} Nc6 {[%emt 0:00:06]} 7. d3 {[%emt 0:05:15]} e6 {[%emt 0:09:35]} 8. d4 {[%emt 0:37:15]} cxd4 {[%emt 0:11:54]} 9. Nxd4 {[%emt 0:01:22]} d5 {[%emt 0:00:07]} 10. cxd5 {[%emt 0:21:27]} Nxd4 {[%emt 0:00:05]} 11. Qxd4 {[%emt 0:00:03]} Nxd5 {[%emt 0:00:06]} 12. Qc4 {[%emt 0:00:04]} Nxc3 {[%emt 0:01:21]} 13. bxc3 {[%emt 0:00:03]} Qa5 {[%emt 0:06:15]} 14. Rb1 {[%emt 0:07:02]} Rb8 {[%emt 0:08:17]} 15. Rb5 {[%emt 0:19:27]} Qxc3 {[%emt 0:21:20]} 16. Qxc3 {[%emt 0:00:05]} Bxc3 {[%emt 0:00:02]} 17. Bf4 {[%emt 0:00:40]} e5 {[%emt 0:00:48]} 18. Bxe5 {[%emt 0:00:13]} Bxe5 {[%emt 0:00:07]} 19. Rxe5 {[%emt 0:00:03]} b6 {[%emt 0:03:33]} 20. Re7 {[%emt 0:01:29]} a5 {[%emt 0:00:01]} 21. Bd5 {[%emt 0:00:17]} Kg7 {[%emt 0:00:15]} 22. Rc1 {[%emt 0:00:38]} Kf6 {[%emt 0:00:15]} 23. Rcc7 {[%emt 0:00:53]} h5 {[%emt 0:07:39]} 24. Bxf7 {[%emt 0:01:21]} b5 {[%emt 0:01:29]} 25. f4 {[%emt 0:00:53]} a4 {[%emt 0:02:30]} 26. h4 {[%emt 0:01:21]} Rd8 {[%emt 0:02:40]} 27. e4 {[%emt 0:00:32]} b4 {[%emt 0:00:31]} 28. Bc4 {[%emt 0:00:44]} 1-0

[Event "13th Palmanova Festival A 2024"]
[Site "Palmanova"]
[Date "2024.12.28"]
[Round "2.4"]
[White "Mizzi, Jack"]
[Black "Bettalli, Francesco"]
[Result "0-1"]
[ECO "A81"]
[WhiteElo "2097"]
[BlackElo "2359"]
[Annotator "RC"]
[PlyCount "68"]
[EventDate "2024.12.27"]
[EventCountry "ITA"]
[SourceTitle "playchess.com"]
[Source "ChessBase"]
[SourceQuality "1"]
[TimeControl "6000+30"]

1. d4 {[%emt 0:00:03]} f5 {[%emt 0:07:53]} 2. Nf3 {[%emt 0:00:22]} Nf6 {[%emt 0:00:34]} 3. g3 {[%emt 0:01:25]} e6 {[%emt 0:00:08]} 4. Bg2 {[%emt 0:00:27]} Be7 {[%emt 0:00:16]} 5. O-O {[%emt 0:00:54]} Ne4 {[%emt 0:00:19]} 6. c4 {[%emt 0:07:20]} d5 {[%emt 0:00:08]} 7. Qc2 {[%emt 0:03:53]} c6 {[%emt 0:00:42]} 8. Nc3 {[%emt 0:03:04]} Nd7 {[%emt 0:00:43]} 9. cxd5 {[%emt 0:08:16]} exd5 {[%emt 0:00:42]} 10. Bf4 {[%emt 0:02:44]} Bf6 {[%emt 0:01:22]} 11. Ne5 {[%emt 0:05:34]} g5 {[%emt 0:09:48]} 12. Nxe4 {[%emt 0:03:16]} fxe4 {[%emt 0:01:06]} 13. Nxd7 {[%emt 0:00:46]} gxf4 {[%emt 0:05:10]} 14. Ne5 {[%emt 0:12:18]} Bxe5 {[%emt 0:11:36]} 15. dxe5 {[%emt 0:00:10]} Qg5 {[%emt 0:00:27]} 16. Qc3 {[%emt 0:06:53]} O-O {[%emt 0:01:23]} 17. f3 {[%emt 0:02:08]} e3 {[%emt 0:03:12]} 18. Rad1 {[%emt 0:04:30]} fxg3 {[%emt 0:05:39]} 19. hxg3 {[%emt 0:02:36]} Qxg3 {[%emt 0:00:09]} 20. Qxe3 {[%emt 0:00:43]} Re8 {[%emt 0:00:11]} 21. Qf2 {[%emt 0:01:29]} Qxe5 {[%emt 0:01:31]} 22. e4 {[%emt 0:00:21]} dxe4 {[%emt 0:00:16]} 23. fxe4 {[%emt 0:00:49]} Be6 {[%emt 0:00:34]} 24. Qh4 {[%emt 0:01:29]} Kh8 {[%emt 0:02:36]} 25. Rd7 {[%emt 0:08:56]} Bxd7 {[%emt 0:02:00]} 26. Rf7 {[%emt 0:00:08]} h5 {[%emt 0:02:27]} 27. Rxd7 {[%emt 0:00:13]} Rg8 {[%emt 0:01:09]} 28. Re7 {[%emt 0:01:08]} Rg4 {[%emt 0:01:30]} 29. Rxe5 {[%emt 0:00:37]} Rxh4 {[%emt 0:00:04]} 30. Bf3 {[%emt 0:01:41]} Rg8+ {[%emt 0:01:03]} 31. Kf2 {[%emt 0:00:10]} Rh2+ {[%emt 0:00:06]} 32. Ke3 {[%emt 0:00:13]} Rg3 {[%emt 0:00:47]} 33. Rf5 {[%emt 0:02:26]} Rhh3 {[%emt 0:01:37]} 34. Kf2 {[%emt 0:00:25]} Rxf3+ {[%emt 0:00:16]} 0-1